Cogmind - Beta 9.4 @@@ ROGUE MODE // 2020.01.08 @ 14:43:28 Player: Ether Result: Destroyed by G-47 Trooper with Particle Gun Performance ------------- Evolutions (0) 0 Regions Visited (1) 200 Robots Destroyed (3) 15 Value Destroyed (39) 39 Prototype IDs (2) 40 Alien Tech Used (0) 0 Bonus (0) 0 TOTAL SCORE: 294 Bonus ------- None Cogmind --------- Core Integrity 0/250 Matter 300/300 Energy 100/100 System Corruption 0% Temperature Cool (24) Movement Core (100) Ox1 Location -10/Materials Parts ------- > --- POWER (1) -------- (None) > --- PROPULSION (2) --- (None) > --- UTILITY (2) ------ Small Storage Unit Structural Scanner > --- WEAPON (2) ------- (None) > --- INVENTORY (6) ---- Ion Engine Ion Engine Light Treads Medium Laser Peak State ------------ > --- POWER ------------ Light Ion Engine > --- PROPULSION ------- Aluminum Leg Aluminum Leg > --- UTILITY ---------- Small Storage Unit Improved Terrain Scanner > --- WEAPON ----------- EM Pulse Gun Mining Laser > --- INVENTORY -------- Ion Engine Light Treads Wheel Medium Laser Assault Rifle [Rating: 8] Favorites ----------- Power Light Ion Engine Engine Light Ion Engine Propulsion Aluminum Leg Treads Light Treads Leg Aluminum Leg Utility Small Storage Unit Device Structural Scanner Storage Small Storage Unit Weapon EM Pulse Gun Energy Gun EM Pulse Gun Ballistic Gun Assault Rifle Special Weapon Mining Laser Build | -11 -10 ------- Run | Scr Mat Slots Evolved . | . . Power . | . . Propulsion . | . . Utility . | . . Weapon . | . . Parts Attached 11 | 7 4 Power 1 | 1 . Engine 1 | 1 . Core . | . . Reactor . | . . Propulsion 4 | 2 2 Treads 2 | . 2 Leg 2 | 2 . Wheel . | . . Hover . | . . Flight . | . . Utility 3 | 2 1 Device 2 | 1 1 Storage 1 | 1 . Processor . | . . Hackware . | . . Protection . | . . Artifact . | . . Weapon 3 | 2 1 Energy Gun 1 | 1 . Energy Cannon . | . . Ballistic Gun 1 | . 1 Ballistic Cannon . | . . Launcher . | . . Special Weapon 1 | 1 . Impact Weapon . | . . Slashing Weapon . | . . Piercing Weapon . | . . Special Melee Weapon . | . . Unidentified Prototypes . | . . Parts Lost 7 | . 7 Power 1 | . 1 Propulsion 3 | . 3 Utility . | . . Weapon 3 | . 3 Highest Loss Streak 4 | . 4 Average Slot Usage (%) 88 | . 88 Engine 9 | . 9 Treads 4 | . 4 Leg 23 | . 23 Device 13 | . 13 Storage 14 | . 14 Energy Gun 8 | . 8 Ballistic Gun 4 | . 4 Special Weapon 9 | . 9 Naked Turns . | . . Heaviest Build 11 | 11 11 Greatest Support 20 | 20 20 Greatest Overweight (x) 2 | 2 2 Average Overweight (x) . | . . Largest Inventory Capacity 6 | 6 6 Average Capacity 5 | 5 6 Most Carried 6 | 6 6 Average Carried 4 | 4 5 Final Capacity 6 | 6 6 Final Carried 5 | 5 4 Class Distribution -------------------- 100% | Mutant Dominant Class ---------------- Mutant | -10/Materials Resources | -11 -10 ----------- Run | Scr Mat Matter Collected 289 | 270 19 Remotely . | . . Salvage Created 99 | 71 28 Parts 9 | 4 5 Haulers Intercepted . | . . Recyclers Shooed 1 | . 1 Parts Field Recycled . | . . Retrieved Matter . | . . Parts Self-Destructed . | . . Prevented . | . . Kills | -11 -10 ------- Run | Scr Mat Combat Hostiles Destroyed . | . . Classes Destroyed 3 | 2 1 Tunneler 1 | 1 . Recycler 1 | 1 . Watcher 1 | . 1 Best Kill Streak 1 | 1 1 Combat Bots Only . | . . Max Kills in Single Turn 1 | 1 1 Gunslinging . | . . Exploded . | . . Melee . | . . Uniques/NPCs Destroyed . | . . Combat | -11 -10 -------- Run | Scr Mat Damage Taken 904 | 14 890 Core 253 | . 253 Absorbed by Shields . | . . Core Remaining (%) 100 | 100 . Volleys Fired 17 | 6 11 Largest 2 | 1 2 Hottest 140 | 40 140 Shots Fired 23 | 6 17 Gun 15 | 6 9 Cannon . | . . Launcher . | . . Special 8 | . 8 Kinetic . | . . Thermal 8 | . 8 Explosive . | . . Electromagnetic 15 | 6 9 Robot Hit Streak 3 | 3 3 Robot Miss Streak 5 | 1 5 Penetration Max . | . . Secondary Targets . | . . Shots Hit Robots 12 | 4 8 Core Hits 5 | 2 3 Critical Hits . | . . Critical Kills . | . . Critical Parts Destroyed . | . . Melee Attacks . | . . Impact . | . . Slashing . | . . Piercing . | . . Sneak Attacks . | . . Combat Hostiles . | . . Follow-up Attacks . | . . Damage Inflicted 284 | 80 204 Guns 132 | 43 89 Cannons . | . . Explosions 71 | 37 34 Melee . | . . Ramming 9 | . 9 Kinetic . | . . Thermal 143 | 37 106 Explosive . | . . Electromagnetic 132 | 43 89 Impact . | . . Slashing . | . . Piercing . | . . Highest Corruption . | . . Average Corruption . | . . Corruption Purged . | . . Overload Shots . | . . Overflow Damage . | . . Projectiles . | . . Explosions . | . . Melee . | . . Knockbacks . | . . Impact . | . . Kinetic . | . . Secondary . | . . Self-Inflicted Damage 48 | 14 34 Shots 2 | 1 1 Rammed 2 | . 2 Targets Rammed 4 | . 4 Kicked 2 | . 2 Crushed . | . . Highest Temperature 442 | 12 442 Average Temperature 195 | 12 207 Received Heat Transfer 462 | . 462 Effects 2 | . 2 Energy Bleed 1 | . 1 Interference 1 | . 1 Siege Activations . | . . Robots Corrupted . | . . Combat Hostiles . | . . Parts Fried . | . . Impact Corruptions . | . . Robots Melted . | . . Combat Hostiles . | . . Parts Melted . | . . Heat Transferred 300 | 50 250 Parts Sabotaged . | . . Parts Stolen . | . . Parts Stripped . | . . Power Chain Reactions 2 | 1 1 Missiles Intercepted . | . . Alert | -11 -10 ------- Run | Scr Mat Peak Influence 63 | 10 63 Average Influence 21 | 3 31 Maximum Alert Level . | . . Low Security (%) 100 | 100 100 Level 1 . | . . Level 2 . | . . Level 3 . | . . Level 4 . | . . Level 5 . | . . High Security . | . . Max Security . | . . Squads Dispatched 1 | . 1 Investigation . | . . Extermination . | . . Reinforcement 1 | . 1 Assault . | . . Garrison . | . . Intercept . | . . Construction Impeded . | . . Haulers Reinforced . | . . Stealth | -11 -10 --------- Run | Scr Mat Distress Signals 1 | . 1 Communications Jammed . | . . Distress Signals . | . . Times Spotted 13 | . 13 Peak Tracking Total 7 | . 7 Tactical Retreats 1 | . 1 Traps | -11 -10 ------- Run | Scr Mat Traps Triggered . | . . Indirectly . | . . Trap Hack Attempts . | . . Triggered . | . . Disarmed . | . . Reprogrammed . | . . Reused . | . . Traps Extracted . | . . Installed . | . . Triggered . | . . Machines | -11 -10 ---------- Run | Scr Mat Machines Disabled 1 | . 1 Max in Single Turn 1 | . 1 Machines Sabotaged . | . . Garrisons Compromised . | . . Overloaded Fab Kills . | . . Fab Network Shutdowns . | . . Hacking | -11 -10 --------- Run | Scr Mat Machines Accessed 1 | . 1 Terminals 1 | . 1 Fabricators . | . . Repair Stations . | . . Recycling Units . | . . Scanalyzers . | . . Garrison Access . | . . Total Hacks 3 | . 3 Successful 1 | . 1 Failed 2 | . 2 Catastrophic . | . . Database Lockouts . | . . Manual 2 | . 2 Terminals 3 | . 3 Fabricators . | . . Repair Stations . | . . Recycling Units . | . . Scanalyzers . | . . Garrison Access . | . . Terminal Hacks 1 | . 1 Prototype ID Bank 1 | . 1 Fabricator Hacks . | . . Repair Station Hacks . | . . Recycling Unit Hacks . | . . Scanalyzer . | . . Garrison Access Hacks . | . . Unauthorized Hacks . | . . Terminals . | . . Fabricators . | . . Repair Stations . | . . Recycling Units . | . . Scanalyzers . | . . Garrison Access . | . . Data Cores Recovered . | . . Used . | . . Hacking Detections 1 | . 1 Full Trace Events . | . . Feedback Events . | . . Feedback Blocked . | . . Robot Schematics Acquired . | . . Robots Built . | . . Matter . | . . Time . | . . Total Robot Build Rating . | . . Part Schematics Acquired . | . . Parts Built . | . . Matter . | . . Time . | . . Total Part Build Rating . | . . Parts Repaired . | . . Time . | . . Parts Recycled . | . . Recycled Matter . | . . Retrieved Matter . | . . Retrieved Components . | . . Parts Scanalyzed . | . . Part Schematics Acquired . | . . Parts Damaged . | . . Bothacking | -11 -10 ------------ Run | Scr Mat Used RIF Installer . | . . Robots Hacked . | . . Non-combat . | . . Combat . | . . Robot Hacks Applied . | . . Relay Couplers Released . | . . Robots Rewired . | . . Allies Hacked . | . . Hacks Repelled . | . . Allies | -11 -10 -------- Run | Scr Mat Total Allies . | . . Largest Group . | . . Highest-Rated Group . | . . Highest-Rated Ally . | . . Total Orders . | . . Ally Attacks . | . . Total Damage . | . . Kills . | . . Allies Corrupted . | . . Allies Melted . | . . Intel | -11 -10 ------- Run | Scr Mat Robot Analysis Total . | . . Derelict Logs Recovered . | . . Drone Launches . | . . Drone Recoveries . | . . Exploration | -11 -10 ------------- Run | Scr Mat Turns Passed 454 | 166 288 Spaces Moved 316 | 125 191 Core 35 | 34 1 Treads . | . . Legs 281 | 91 190 Wheels . | . . Hover . | . . Flight . | . . Fastest Speed 50 | 50 120 Average Speed 114 | 106 120 Slowest Speed 150 | 150 150 Overloaded Moves . | . . Propulsion Burnouts . | . . Robots Hopped . | . . Cave-ins Triggered . | . . Exploration Rate (%) 19 | 6 33 Regions Visited 1 Branch Regions . Pre-discovered Areas . | . . Known Exits Taken . | . . Unknown Exits Taken 1 | 1 . Scrap Searched . | . . Spaces Dug . | . . Terrain Destroyed 12 | 2 10 Melee . | . . Projectile 4 | . 4 AOE 8 | 2 6 Actions | -11 -10 --------- Run | Scr Mat Total 368 | 153 215 Wait 3 | . 3 Move 315 | 124 191 Hop . | . . Pick Up 15 | 14 1 Fast Attach 1 | . 1 Attach 9 | 7 2 Detach . | . . Swap 1 | . 1 Drop 3 | 2 1 Fire 17 | 6 11 Melee . | . . Ram . | . . Kick 4 | . 4 Crush . | . . Escape Stasis . | . . Rewire . | . . Trap . | . . Miscellaneous . | . . Route ------- -11/Scrapyard -10/Materials (discovered 2 exits: [*Mat] / [Min]) History --------- Turn | Location | Event 7 | -11/Scrapyard | Discovered new exit (range 13) 167 | -11/Scrapyard | Entered Materials 220 | -10/Materials | Discovered new exit (range 11) 312 | -10/Materials | Build established: Mutant 369 | -10/Materials | Core integrity fell below 50% 388 | -10/Materials | Lost 4 parts (1p1n2w) 418 | -10/Materials | Core integrity fell below 20% 453 | -10/Materials | Discovered new exit (range 15) 455 | -10/Materials | Destroyed by G-47 Trooper with Particle Gun Last Messages --------------- 00346_ U-05 Engineer builds a Wall. 00351_ Aluminum Leg destroyed. 00351_ Mining Laser destroyed. 00357_ Lgt. Ion Engine destroyed. 00358_ G-34 Mercenary heat spikes uncontrollably. 00358_ Kicked G-34 Mercenary out of the way. 00359_ Acquired 19 matter. 00359_ Slammed into U-05 Engineer. 00360_ Destabilizing: Core damaged (-10). 00361_ Overheating: System interference. 00361_ Structural Scanner temporarily disabled. 00399_ K-01 Serf collects debris. 00401_ Kicked G-47 Trooper out of the way. 00402_ K-01 Serf collects debris. 00449_ Connecting with Recycling Unit... 00453_ Lgt. Treads destroyed. 00453_ EXIT=FOUND 00453_ Aluminum Leg destroyed. 00455_ K-01 Serf collects debris. 00455_ Assault Rifle destroyed. Map ----- +----------------------------------------------------+ | ??????????????????????????# # """"" ? | | ??????????????????????????#""" # """"" | | ??????????????????????????#""" !# """ | | ??????????????????????????#""" # | | ??????????????????????????# # | | ??????????????????????????######## | | ?????????????????????????????????# | | ?????????????????????????????????# ####### ? | | ?????????????????????????????????# #????????? | | ?????????????????????????????????#### #????????? | | ??????????????????????########??????# #????????? | | ??????????????????????#====!!########+#####??????? | | ??????????????????????#====!!## #??????? | | ??????????????????????# ## """ #??????? | | ??????????????????????# ## """"" #??????? | | ??????????????????????# + """"" +??????? | | ??????????????????????# ### """"" #??????? | | ??????????????????????# #?# % """ #??????? | | ??????????????????????# g #?# #??????? | | ???????????????######## g #?#############??????? | | ???????????????# """ # #????????????????????? | | ???????????????# "Y" # g #????????????????????? | | ???????????????# /g ####?????????????????? | | ???????????????# # +?????????????????? | | ???????????????# !# #?????????????????? | | ???????????????# ###@ #?????????????????? | | ???????????????########?#g #?????????????????? | | ????????????????????????# g #?????????????????? | | ????????????????????????# #?????????????????? | | ????????????????????????# ????????????????? | | ????????????????????????# #???????????????? | | ????????????????????????+ #???????????????? | | ????????????????????????# #???????????????? | | ????????????????????????# #???????????????? | | ?????????????????????????k #???????????????? | | ????????????????????????? #???????????????? | | ????????????????????????? +???????????????? | | ?????????????????????????##### < #???????????????? | | ?????????????????????????????? ????????????????? | | ?????????????????????????????????????????????????? | | ?????????????????????????????????????????????????? | | ?????????????????????????????????????????????????? | | ?????????????????????????????????????????????????? | | ?????????????????????????????????????????????????? | | ?????????????????????????????????????????????????? | | | | | | | | | | | +----------------------------------------------------+ Best States ------------- Heat Dissipation 25 Energy Generation 10 Energy Capacity 125 Matter Stores 300 Matter Capacity 300 Sight Range 16 Terrain Scan Range 16 Terrain Scan Density 10 Evasion (%) 50 Item Schematics ----------------- None Robot Schematics ------------------ None Fabricated ------------ Nothing Alien Tech Used ----------------- None Achievements -------------- Storm Trooper Challenges ------------ None Game ------ Seed LegSupercompositeRail Manual? 0 Play Time 00:08:53 Cumulative 9.4 hours Start 2020.01.08 @ 14:37:47 End 2020.01.08 @ 14:43:28 Sessions 1 Manual Loads 0 Difficulty Rogue Special Mode None Game No. 30 Rogue 30 Adventurer 0 Explorer 0 Win Type - Total 0 Types 0/0/0/0/0/0/0 Lore% 7 Gallery% 20 Achievement% 12 Wizard Run 0 Options --------- ASCII 0 Keyboard 0 Movement Numpad Keybinds 0 Fullscreen 1 Font 18/SmallcapsGlow Map View 76x50 Tactical HUD 1 Map Filters NONE Filters NONE Steam 1 RUN: 2f0e6ab4-5e75-49c6-a9c5-981231f67fa5